fUSD/lending_fUSD_20250108
["ID","MTS","AMOUNT","RATE_DAILY","PERIOD"]
[348180730,1736369444120,-500.0,9.997e-05,2]
[348180731,1736369444129,-537.6,9.997e-05,2]
[348180732,1736369444138,-500.0,9.997e-05,2]
[348180733,1736369444147,-500.0,9.997e-05,2]
[348180734,1736369444162,-500.0,9.997e-05,2]
[348180735,1736369444172,-500.0,9.997e-05,2]
[348180736,1736369444182,-500.0,9.997e-05,2]
[348180737,1736369444191,-500.0,9.997e-05,2]
[348180738,1736369444200,-500.0,9.997e-05,2]
[348180739,1736369444209,-500.0,9.997e-05,2]
[348180740,1736369444219,-500.0,9.997e-05,2]
[348180741,1736369444228,-500.0,9.997e-05,2]
[348180742,1736369444237,-500.0,9.997e-05,2]
[348180743,1736369444246,-500.0,9.997e-05,2]
[348180744,1736369444256,-1825.37,9.997e-05,2]
[348180745,1736369444265,-500.0,9.997e-05,2]
[348180746,1736369444275,-500.0,9.997e-05,2]
[348180747,1736369444285,-500.0,9.997e-05,2]
[348180748,1736369444294,-325.25,9.997e-05,2]
[348180749,1736369444303,-500.0,9.997e-05,2]
[348180750,1736369444312,-500.0,9.997e-05,2]
[348180751,1736369444322,-500.0,9.997e-05,2]
[348180752,1736369444332,-500.0,9.997e-05,2]
[348180753,1736369444343,-500.0,9.997e-05,2]
[348180754,1736369444353,-500.0,9.997e-05,2]
[348180755,1736369444363,-546.84,9.997e-05,2]
[348180756,1736369444372,-506.18962622,9.997e-05,2]
[348180757,1736369444381,-500.0,9.997e-05,2]
[348180758,1736369444390,-506.27369741,9.997e-05,2]
[348180759,1736369444400,-500.0,9.997e-05,2]
[348180760,1736369444409,-500.0,9.997e-05,2]
[348180761,1736369444419,-500.0,9.997e-05,2]
[348180762,1736369444429,-500.0,9.997e-05,2]
[348180763,1736369444438,-500.0,9.997e-05,2]
[348180764,1736369444447,-500.0,9.997e-05,2]
[348180765,1736369444456,-500.0,9.997e-05,2]
[348180766,1736369444465,-500.0,9.997e-05,2]
[348180767,1736369444475,-500.0,9.997e-05,2]
[348180768,1736369444484,-500.0,9.997e-05,2]
[348180769,1736369444493,-500.0,9.997e-05,2]
[348180770,1736369444502,-500.0,9.997e-05,2]
[348180771,1736369444511,-506.44241781,9.997e-05,2]
[348180772,1736369444520,-500.0,9.997e-05,2]
[348180773,1736369444530,-500.0,9.997e-05,2]
[348180774,1736369444540,-500.0,9.997e-05,2]
[348180775,1736369444549,-969.09,9.997e-05,2]
[348180776,1736369444559,-500.0,9.997e-05,2]
[348180777,1736369444569,-621.64,9.997e-05,2]
[348180778,1736369444578,-867.41,9.997e-05,2]
[348180779,1736369444587,-957.81,9.997e-05,2]
[348180780,1736369444597,-1360.43,9.997e-05,2]
[348180781,1736369444606,-3412.39,9.997e-05,2]
[348180782,1736369444615,-679.37,9.997e-05,2]
[348180783,1736369444627,-677.1,9.998e-05,2]
[348180784,1736369444637,-500.0,9.998e-05,2]
[348180785,1736369444648,-855.32,9.998e-05,2]
[348180786,1736369444658,-1559.04,9.998e-05,2]
[348180787,1736369444667,-821.11,9.998e-05,2]
[348180788,1736369444676,-572.06,9.998e-05,2]
[348180789,1736369444686,-500.0,9.998e-05,2]
[348180790,1736369444695,-500.0,9.998e-05,2]
[348180791,1736369444704,-774.72,9.998e-05,2]
[348180792,1736369444713,-500.0,9.998e-05,2]
[348180793,1736369444723,-521.91,9.998e-05,2]
[348180794,1736369444732,-500.0,9.998e-05,2]
[348180795,1736369444742,-500.0,9.998e-05,2]
[348180796,1736369444751,-500.0,9.998e-05,2]
[348180797,1736369444760,-500.0,9.998e-05,2]
[348180798,1736369444769,-918.59,9.998e-05,2]
[348180799,1736369444831,-1076.78,9.998e-05,2]
[348180800,1736369444840,-1460.37,9.998e-05,2]
[348180801,1736369444849,-4855.35,9.998e-05,2]
[348180802,1736369444859,-744.44,9.998e-05,2]
[348180803,1736369444867,-3412.39,9.999e-05,2]
[348180804,1736369444877,-3412.39,9.999e-05,2]
[348180805,1736369444886,-3412.39,9.999e-05,2]
[348180806,1736369444895,-3412.39,9.999e-05,2]
[348180807,1736369444904,-3412.39,9.999e-05,2]
[348180808,1736369444916,-3412.39,9.999e-05,2]
[348180809,1736369444925,-3412.39,9.999e-05,2]
[348180810,1736369444935,-3412.39,9.999e-05,2]
[348180811,1736369444943,-3412.39,9.999e-05,2]
[348180812,1736369444953,-3412.39,9.999e-05,2]
[348180813,1736369444962,-3412.39,9.999e-05,2]
[348180814,1736369444971,-3412.39,9.999e-05,2]
[348180815,1736369444980,-175684.0,0.0001,2]
[348180816,1736369444990,-1900.0,0.0001,3]
[348180817,1736369444999,-204.62473549,0.0001,2]
[348180818,1736369445008,-600.86,0.0001004,2]
[348180819,1736369445017,-1796.61,0.0001004,2]
[348180820,1736369445026,-977.43,0.0001004,2]
[348180821,1736369445035,-3154.19,0.0001004,2]
[348180822,1736369445045,-692.91,0.00010041,2]
[348180823,1736369445053,-500.0,0.00010041,2]
[348180824,1736369445063,-1000.0,0.00010041,2]
[348180825,1736369445072,-510.19,0.00010041,2]
[348180826,1736369445081,-500.0,0.00010041,2]
[348180827,1736369445090,-1551.75,0.00010041,2]
[348180828,1736369445099,-1035.07,0.00010041,2]
[348180829,1736369445108,-13688.22915548,0.00010133,4]
[348180830,1736369445117,-164.22,0.00010137,2]
[348180831,1736369445126,-1000.0,0.00010185,2]
[348180832,1736369445135,-782.31,0.000102,2]
[348180833,1736369445145,-500.0,0.00010238,2]
[348180834,1736369445155,-500.0,0.00010238,2]
[348180835,1736369445166,-2140.9,0.00010238,2]
[348180836,1736369445175,-500.0,0.00010238,2]
[348180837,1736369445184,-787.91,0.00010238,2]
[348180838,1736369445193,-770.83,0.00010238,2]
[348180839,1736369445204,-500.0,0.00010244,2]
[348180840,1736369445213,-834.62,0.00010244,2]
[348180841,1736369445223,-1034.64,0.00010244,2]
[348180842,1736369445233,-748.44,0.00010244,2]
[348180843,1736369445243,-1789.65,0.00010244,2]
[348180844,1736369445252,-503.86448063,0.00010245,2]
[348180845,1736369445261,-500.78585461,0.00010245,2]
[348180846,1736369445270,-503.30992833,0.00010245,2]
[348180847,1736369445282,-622.10170607,0.00010245,2]
[348180848,1736369445291,-500.80795696,0.00010245,2]
[348180849,1736369445300,-639.90165029,0.00010245,2]
[348180850,1736369445309,-198.17610873,0.00010245,2]
[348180851,1736369445318,-500.0,0.00010245,2]
[348180852,1736369445328,-500.0,0.00010245,2]
[348180853,1736369445339,-500.0,0.00010245,2]
[348180854,1736369445349,-502.02745025,0.00010245,2]
[348180855,1736369445359,-206.86468456,0.00010245,2]
[348180856,1736369445370,-500.0,0.00010245,2]
[348180857,1736369445381,-209.36669765,0.00010245,2]
[348180858,1736369445391,-500.0,0.00010245,2]
[348180859,1736369445402,-500.0,0.00010245,2]
[348180860,1736369445414,-500.0,0.00010245,2]
[348180861,1736369445422,-500.36449735,0.00010245,2]
[348180862,1736369445432,-502.51519698,0.00010245,2]
[348180863,1736369445441,-500.57455814,0.00010245,2]
[348180864,1736369445450,-501.12418719,0.00010245,2]
[348180865,1736369445459,-500.0,0.00010245,2]
[348180866,1736369445468,-500.0,0.00010245,2]
[348180867,1736369445478,-500.0,0.00010245,2]
[348180868,1736369445487,-500.21467182,0.00010245,2]
[348180869,1736369445496,-500.0,0.00010245,2]
[348180870,1736369445506,-500.64129024,0.00010245,2]
[348180871,1736369445515,-500.0,0.00010245,2]
[348180872,1736369445524,-500.0,0.00010245,2]
[348180873,1736369445533,-500.0,0.00010245,2]
[348180874,1736369445542,-500.0,0.00010245,2]
[348180875,1736369445551,-500.0,0.00010245,2]
[348180876,1736369445560,-500.0,0.00010245,2]
[348180877,1736369445569,-500.0,0.00010245,2]
[348180878,1736369445578,-500.0,0.00010245,2]
[348180879,1736369445588,-500.0,0.00010245,2]
[348180880,1736369445597,-500.0,0.00010245,2]
[348180881,1736369445606,-500.0,0.00010245,2]
[348180882,1736369445615,-502.93717511,0.00010245,2]
[348180883,1736369445624,-500.0,0.00010245,2]
[348180884,1736369445633,-500.81129647,0.00010245,2]
[348180885,1736369445642,-500.53493488,0.00010245,2]
[348180886,1736369445652,-503.74058686,0.00010245,2]
[348180887,1736369445661,-500.46047113,0.00010245,2]
[348180888,1736369445670,-301.66733362,0.00010245,2]
[348180889,1736369445680,-501.58616187,0.00010245,2]
[348180890,1736369445689,-500.0,0.00010245,2]
[348180891,1736369445699,-502.04273035,0.00010245,2]
[348180892,1736369445708,-500.0,0.00010245,2]
[348180893,1736369445717,-502.08340075,0.00010245,2]
[348180894,1736369445726,-502.82261065,0.00010245,2]
[348180895,1736369445735,-502.69058578,0.00010245,2]
[348180896,1736369445744,-503.69044292,0.00010245,2]
[348180897,1736369445754,-500.29862436,0.00010245,2]
[348180898,1736369445763,-500.0,0.00010245,2]
[348180899,1736369445773,-616.38764511,0.00010245,2]
[348180900,1736369445782,-502.19373558,0.00010245,2]
[348180901,1736369445791,-500.27013525,0.00010245,2]
[348180902,1736369445800,-500.98348293,0.00010245,2]
[348180903,1736369445809,-500.58289113,0.00010245,2]
[348180904,1736369445818,-501.55184241,0.00010245,2]
[348180905,1736369445827,-522.92083172,0.00010245,2]
[348180906,1736369445837,-501.18855224,0.00010245,2]
[348180907,1736369445846,-179.63464525,0.00010245,2]
[348180908,1736369445855,-502.1104876,0.00010245,2]
[348180909,1736369445864,-502.1991438,0.00010245,2]
[348180910,1736369445873,-502.12897634,0.00010245,2]
[348180911,1736369445882,-501.64386903,0.00010245,2]
[348180912,1736369445891,-500.23523175,0.00010245,2]
[348180913,1736369445900,-518.26542156,0.00010245,2]
[348180914,1736369445910,-500.81883492,0.00010245,2]
[348180915,1736369445920,-500.48975667,0.00010245,2]
[348180916,1736369445929,-500.45967866,0.00010245,2]
[348180917,1736369445939,-501.04386672,0.00010245,2]
[348180918,1736369445948,-500.0,0.00010245,2]
[348180919,1736369445957,-252.71006306,0.00010245,2]
[348180920,1736369445967,-1000.0,0.00010245,2]
[348180921,1736369445975,-500.88864951,0.00010245,2]
[348180922,1736369445985,-500.75073556,0.00010245,2]
[348180923,1736369445994,-501.92496728,0.00010245,2]
[348180924,1736369446004,-500.0,0.00010247,2]
[348180925,1736369446015,-500.0,0.00010247,2]
[348180926,1736369446024,-500.0,0.00010247,2]
[348180927,1736369446034,-585.41,0.00010247,2]
[348180928,1736369446043,-500.0,0.00010247,2]
[348180929,1736369446052,-500.0,0.00010247,2]
[348180930,1736369446061,-500.0,0.00010247,2]
[348180931,1736369446070,-500.0,0.00010247,2]
[348180932,1736369446079,-500.0,0.00010247,2]
[348180933,1736369446088,-500.0,0.00010247,2]
[348180934,1736369446098,-500.0,0.00010247,2]
[348180935,1736369446107,-500.0,0.00010247,2]
[348180936,1736369446117,-500.0,0.00010247,2]
[348180938,1736369446126,-500.0,0.00010247,2]
[348180940,1736369446135,-500.0,0.00010247,2]
[348180942,1736369446145,-500.0,0.00010247,2]
[348180943,1736369446156,-1090.83,0.00010247,2]
[348180944,1736369446170,-500.0,0.00010247,2]
[348180946,1736369446180,-500.0,0.00010247,2]
[348180948,1736369446190,-573.73,0.00010247,2]
[348180950,1736369446199,-500.0,0.00010247,2]
[348180952,1736369446210,-500.0,0.00010247,2]
[348180953,1736369446219,-762.3,0.00010247,2]
[348180954,1736369446229,-500.0,0.00010247,2]
[348180955,1736369446239,-500.0,0.00010247,2]
[348180956,1736369446249,-500.0,0.00010247,2]
[348180957,1736369446259,-500.0,0.00010247,2]
[348180958,1736369446268,-500.0,0.00010247,2]
[348180959,1736369446277,-204.77,0.00010247,2]
[348180960,1736369446287,-666.66,0.00010247,2]
[348180961,1736369446296,-500.0,0.00010247,2]
[348180962,1736369446305,-500.0,0.00010247,2]
[348180963,1736369446315,-500.0,0.00010247,2]
[348180964,1736369446324,-629.24,0.00010247,2]
[348180965,1736369446333,-500.0,0.00010247,2]
[348180966,1736369446343,-501.66,0.00010247,2]
[348180967,1736369446352,-538.62,0.00010247,2]
[348180968,1736369446362,-354.78217962,0.00010247,2]
[348180969,1736369446371,-523.259551,0.00010247,2]
[348180970,1736369446380,-500.0,0.00010247,2]
[348180971,1736369446390,-500.0,0.00010247,2]
[348180972,1736369446400,-500.0,0.00010247,2]
[348180973,1736369446410,-520.13,0.00010247,2]
[348180974,1736369446419,-500.0,0.00010247,2]
[348180975,1736369446428,-500.0,0.00010247,2]
[348180976,1736369446438,-500.0,0.00010247,2]
[348180977,1736369446447,-532.122936,0.00010247,2]
[348180978,1736369446457,-500.0,0.00010247,2]
[348180979,1736369446467,-500.0,0.00010247,2]
[348180980,1736369446476,-2281.0,0.00010247,2]
[348180981,1736369446485,-362.62,0.00010247,2]
[348180982,1736369446495,-612.78,0.00010247,2]
[348180983,1736369446504,-500.0,0.00010247,2]
[348180984,1736369446514,-500.0,0.00010247,2]
[348180985,1736369446523,-500.0,0.00010247,2]
[348180986,1736369446532,-500.0,0.00010247,2]
[348180987,1736369446542,-500.0,0.00010247,2]
[348180988,1736369446551,-500.0,0.00010247,2]
[348180989,1736369446561,-500.0,0.00010247,2]
[348180990,1736369446570,-500.0,0.00010247,2]
[348180991,1736369446579,-500.0,0.00010247,2]
[348180992,1736369446589,-500.0,0.00010247,2]
[348180993,1736369446598,-500.0,0.00010247,2]
[348180994,1736369446607,-500.0,0.00010247,2]
[348180995,1736369446616,-500.0,0.00010247,2]
[348180996,1736369446626,-500.0,0.00010247,2]
[348180997,1736369446635,-500.0,0.00010247,2]
[348180998,1736369446644,-500.0,0.00010247,2]
[348180999,1736369446654,-500.0,0.00010247,2]
[348181000,1736369446664,-500.0,0.00010247,2]
[348181001,1736369446674,-500.0,0.00010247,2]
[348181002,1736369446684,-500.0,0.00010247,2]
[348181003,1736369446693,-1678.3,0.00010247,2]
[348181004,1736369446703,-500.0,0.00010247,2]
[348181005,1736369446712,-500.0,0.00010247,2]
[348181006,1736369446722,-506.15802987,0.00010247,2]
[348181007,1736369446731,-500.0,0.00010247,2]
[348181008,1736369446740,-500.0,0.00010247,2]
[348181009,1736369446750,-500.0,0.00010247,2]
[348181010,1736369446760,-500.0,0.00010247,2]
[348181011,1736369446771,-500.0,0.00010247,2]
[348181012,1736369446782,-500.0,0.00010247,2]
[348181013,1736369446793,-500.0,0.00010247,2]
[348181014,1736369446804,-500.0,0.00010247,2]
[348181015,1736369446814,-500.0,0.00010247,2]
[348181016,1736369446824,-500.0,0.00010247,2]
[348181017,1736369446833,-500.0,0.00010247,2]
[348181018,1736369446842,-510.27,0.00010247,2]
[348181019,1736369446852,-2207.75,0.00010247,2]
[348181020,1736369446862,-1999.55,0.00010247,2]
[348181021,1736369446872,-561.76,0.00010247,2]
[348181022,1736369446881,-198.81553344,0.00010247,2]
[348181023,1736369446891,-564.54,0.00010247,2]
[348181024,1736369446900,-668.93,0.00010247,2]
[348181025,1736369446912,-500.0,0.00010247,2]
[348181026,1736369446923,-500.0,0.00010247,2]
[348181027,1736369446932,-500.0,0.00010247,2]
[348181028,1736369446942,-500.0,0.00010247,2]
[348181029,1736369446952,-500.0,0.00010247,2]
[348181030,1736369446963,-2164.18,0.00010247,2]
[348181031,1736369446972,-542.64,0.00010247,2]
[348181032,1736369446983,-500.0,0.00010247,2]
[348181033,1736369446992,-500.0,0.00010247,2]
[348181034,1736369447002,-2814.08,0.00010247,2]
[348181035,1736369447012,-500.0,0.00010247,2]
[348181036,1736369447022,-500.0,0.00010247,2]
[348181037,1736369447032,-1203.26,0.00010247,2]
[348181038,1736369447041,-500.0,0.00010247,2]
[348181039,1736369447051,-500.0,0.00010247,2]
[348181040,1736369447061,-500.0,0.00010247,2]
[348181041,1736369447072,-500.0,0.00010247,2]
[348181042,1736369447083,-500.0,0.00010247,2]
[348181043,1736369447092,-500.0,0.00010247,2]
[348181044,1736369447103,-500.0,0.00010247,2]
[348181045,1736369447112,-2405.48,0.00010247,2]
[348181046,1736369447122,-664.48,0.00010247,2]
[348181047,1736369447132,-662.27,0.00010247,2]
[348181048,1736369447142,-500.0,0.00010247,2]
[348181049,1736369447154,-500.0,0.00010247,2]
[348181050,1736369447165,-500.0,0.00010247,2]
[348181051,1736369447175,-500.0,0.00010247,2]
[348181052,1736369447184,-500.0,0.00010247,2]
[348181053,1736369447195,-500.0,0.00010247,2]
[348181054,1736369447205,-500.0,0.00010247,2]
[348181055,1736369447214,-500.0,0.00010247,2]
[348181056,1736369447224,-1062.86,0.00010247,2]
[348181057,1736369447235,-1239.93,0.00010247,2]
[348181058,1736369447245,-500.0,0.00010247,2]
[348181059,1736369447255,-500.0,0.00010247,2]
[348181060,1736369447264,-500.0,0.00010247,2]
[348181061,1736369447274,-1225.72,0.00010247,2]
[348181062,1736369447283,-500.0,0.00010247,2]
[348181063,1736369447292,-803.05,0.00010247,2]
[348181064,1736369447303,-500.0,0.00010247,2]
[348181065,1736369447313,-780.02,0.00010247,2]
[348181066,1736369447323,-500.0,0.00010247,2]
[348181067,1736369447333,-500.0,0.00010247,2]
[348181068,1736369447342,-500.0,0.00010247,2]
[348181069,1736369447351,-500.0,0.00010247,2]
[348181070,1736369447361,-1654.27,0.00010247,2]
[348181071,1736369447371,-500.0,0.00010247,2]
[348181072,1736369447381,-500.0,0.00010247,2]
[348181073,1736369447391,-924.94,0.00010247,2]
[348181074,1736369447401,-500.0,0.00010247,2]
[348181075,1736369447412,-500.0,0.00010247,2]
[348181076,1736369447423,-500.0,0.00010247,2]
[348181077,1736369447432,-678.49,0.00010247,2]
[348181078,1736369447442,-500.0,0.00010247,2]
[348181079,1736369447453,-500.0,0.00010247,2]
[348181080,1736369447462,-500.0,0.00010247,2]
[348181081,1736369447472,-500.0,0.00010247,2]
[348181082,1736369447481,-500.0,0.00010247,2]
[348181083,1736369447491,-500.0,0.00010247,2]
[348181084,1736369447501,-977.89,0.00010247,2]
[348181085,1736369447511,-976.5,0.00010247,2]
[348181086,1736369447522,-500.0,0.00010247,2]
[348181087,1736369447531,-375.91,0.00010247,2]
[348181088,1736369447541,-500.0,0.00010247,2]
[348181089,1736369447551,-824.16,0.00010247,2]
[348181090,1736369447561,-500.0,0.00010247,2]
[348181091,1736369447570,-500.0,0.00010247,2]
[348181092,1736369447580,-1040.36,0.00010247,2]
[348181093,1736369447590,-500.0,0.00010247,2]
[348181094,1736369447599,-500.0,0.00010247,2]
[348181095,1736369447610,-500.0,0.00010247,2]
[348181096,1736369447619,-2363.0,0.00010247,2]
[348181097,1736369447629,-500.0,0.00010247,2]
[348181098,1736369447639,-500.0,0.00010247,2]
[348181099,1736369447648,-580.04,0.00010247,2]
[348181100,1736369447660,-500.0,0.00010247,2]
[348181101,1736369447670,-839.22,0.00010247,2]
[348181102,1736369447680,-1013.11,0.00010247,2]
[348181103,1736369447690,-500.0,0.0001027,2]
[348181104,1736369447700,-500.0,0.0001027,2]
[348181105,1736369447710,-500.0,0.0001027,2]
[348181106,1736369447720,-500.0,0.0001027,2]
[348181107,1736369447730,-500.0,0.0001027,2]
[348181108,1736369447740,-500.0,0.0001027,2]
[348181109,1736369447751,-500.0,0.0001027,2]
[348181110,1736369447761,-500.0,0.0001027,2]
[348181111,1736369447771,-500.0,0.0001027,2]
[348181112,1736369447781,-508.20928554,0.0001027,2]
[348181113,1736369447791,-500.0,0.0001027,2]
[348181114,1736369447801,-500.0,0.0001027,2]
[348181115,1736369447812,-267.60524433,0.0001027,2]
[348181116,1736369447822,-552.42,0.0001027,2]
[348181117,1736369447833,-500.0,0.0001027,2]
[348181118,1736369447842,-500.0,0.0001027,2]
[348181119,1736369447852,-195.61448154,0.0001027,2]
[348181120,1736369447862,-500.0,0.0001027,2]
[348181121,1736369447871,-319.94169573,0.0001027,2]
[348181122,1736369447881,-500.0,0.0001027,2]
[348181123,1736369447890,-500.0,0.00010271,2]
[348181124,1736369447899,-500.0,0.00010271,2]
[348181125,1736369447909,-500.0,0.00010271,2]
[348181126,1736369447921,-500.0,0.00010271,2]
[348181127,1736369447933,-500.0,0.00010271,2]
[348181128,1736369447946,-500.0,0.00010271,2]
[348181129,1736369447957,-500.0,0.00010271,2]
[348181130,1736369447966,-440.12296109,0.00010271,2]
[348181131,1736369447976,-500.0,0.00010271,2]
[348181132,1736369447985,-500.0,0.00010271,2]
[348181133,1736369447995,-500.0,0.00010271,2]
[348181134,1736369448005,-578.10602452,0.00010271,2]
[348181135,1736369448014,-500.0,0.00010271,2]
[348181136,1736369448026,-500.0,0.00010271,2]
[348181137,1736369448036,-500.0,0.00010271,2]
[348181138,1736369448045,-500.0,0.00010271,2]
[348181139,1736369448055,-500.0,0.00010271,2]
[348181140,1736369448065,-500.0,0.00010271,2]
[348181141,1736369448075,-500.0,0.00010271,2]
[348181142,1736369448085,-500.0,0.00010271,2]
[348181143,1736369448094,-500.0,0.00010271,2]
[348181144,1736369448104,-500.0,0.00010271,2]
[348181145,1736369448113,-307.6,0.00010271,2]
[348181146,1736369448123,-500.0,0.00010271,2]
[348181147,1736369448132,-500.0,0.00010271,2]
[348181148,1736369448142,-500.0,0.00010271,2]
[348181149,1736369448152,-500.0,0.00010271,2]
[348181150,1736369448166,-500.0,0.00010271,2]
[348181151,1736369448176,-500.0,0.00010271,2]
[348181152,1736369448186,-500.0,0.00010271,2]
[348181153,1736369448196,-500.0,0.00010271,2]
[348181154,1736369448206,-500.0,0.00010271,2]
[348181155,1736369448215,-500.0,0.00010271,2]
[348181156,1736369448225,-500.0,0.00010271,7]
[348181157,1736369448236,-500.0,0.00010271,2]
[348181158,1736369448246,-500.0,0.00010271,2]
[348181159,1736369448257,-506.90764995,0.00010271,2]
[348181160,1736369448266,-500.0,0.00010271,2]
[348181161,1736369448276,-500.0,0.00010271,2]
[348181162,1736369448286,-500.0,0.00010271,2]
[348181163,1736369448453,-500.0,0.00010271,2]
[348181164,1736369448463,-500.0,0.00010271,2]
[348181165,1736369448472,-500.0,0.00010271,2]
[348181166,1736369448482,-515.11272573,0.00010271,2]
[348181167,1736369448492,-500.0,0.00010271,2]
[348181168,1736369448501,-500.0,0.00010271,2]
[348181169,1736369448511,-500.0,0.00010271,2]
[348181170,1736369448521,-500.0,0.00010271,2]
[348181171,1736369448530,-500.0,0.00010271,2]
[348181172,1736369448539,-524.03,0.00010271,2]
[348181173,1736369448549,-500.0,0.00010271,2]
[348181174,1736369448558,-500.0,0.00010271,2]
[348181175,1736369448567,-500.0,0.00010271,2]
[348181176,1736369448576,-571.5,0.00010271,2]
[348181177,1736369448585,-500.0,0.00010271,2]
[348181178,1736369448594,-537.59,0.00010271,2]
[348181179,1736369448603,-500.0,0.00010271,2]
[348181180,1736369448613,-500.0,0.00010271,2]
[348181181,1736369448622,-500.0,0.00010271,2]
[348181182,1736369448631,-500.0,0.00010271,2]
[348181183,1736369448641,-500.0,0.00010271,2]
[348181184,1736369448650,-500.0,0.00010271,2]
[348181185,1736369448659,-500.0,0.00010271,2]
[348181186,1736369448668,-500.0,0.00010271,2]
[348181187,1736369448677,-495.81721314,0.00010271,2]
[348181188,1736369448687,-2513.96,0.00010271,2]
[348181189,1736369448696,-500.0,0.00010271,2]
[348181190,1736369448705,-500.0,0.00010271,2]
[348181191,1736369448715,-500.0,0.00010271,2]
[348181192,1736369448724,-500.0,0.00010271,2]
[348181193,1736369448733,-500.0,0.00010271,2]
[348181194,1736369448742,-500.0,0.00010271,2]
[348181195,1736369448752,-500.0,0.00010271,2]
[348181196,1736369448761,-500.0,0.00010271,2]
[348181197,1736369448771,-500.0,0.00010271,2]
[348181198,1736369448780,-1216.27,0.00010271,2]
[348181199,1736369448789,-500.0,0.00010271,2]
[348181200,1736369448798,-500.0,0.00010271,2]
[348181201,1736369448808,-500.0,0.00010271,2]
[348181202,1736369448817,-500.0,0.00010271,2]
[348181203,1736369448827,-285.31,0.00010271,2]
[348181204,1736369448836,-500.0,0.00010271,2]
[348181205,1736369448846,-500.0,0.00010271,2]
[348181206,1736369448855,-500.0,0.00010271,2]
[348181207,1736369448864,-500.0,0.00010271,2]
[348181208,1736369448874,-500.0,0.00010271,2]
[348181209,1736369448883,-500.0,0.00010271,2]
[348181210,1736369448892,-1825.37,0.00010271,2]
[348181211,1736369448901,-500.0,0.00010271,2]
[348181212,1736369448911,-500.0,0.00010271,2]
[348181213,1736369448922,-500.0,0.00010271,2]
[348181214,1736369448932,-500.0,0.00010271,2]
[348181215,1736369448941,-574.5073766,0.00010271,2]
[348181216,1736369448950,-500.0,0.00010271,2]
[348181217,1736369448960,-500.0,0.00010271,2]
[348181218,1736369448970,-500.0,0.00010271,2]
[348181219,1736369448979,-500.0,0.00010271,2]
[348181220,1736369448988,-546.84,0.00010271,2]
[348181221,1736369448998,-500.0,0.00010271,2]
[348181222,1736369449008,-500.0,0.00010271,2]
[348181223,1736369449019,-156.26,0.00010271,2]
[348181224,1736369449028,-500.0,0.00010271,2]
[348181225,1736369449038,-500.0,0.00010271,2]
[348181226,1736369449048,-500.0,0.00010271,2]
[348181227,1736369449058,-500.0,0.00010271,2]
[348181228,1736369449067,-500.0,0.00010271,2]
[348181229,1736369449077,-500.0,0.00010271,2]
[348181230,1736369449086,-500.0,0.00010271,2]
[348181231,1736369449095,-500.0,0.00010271,2]
[348181232,1736369449104,-500.0,0.00010271,2]
[348181233,1736369449114,-969.09,0.00010271,2]
[348181234,1736369449123,-500.0,0.00010271,2]
[348181235,1736369449133,-621.64,0.00010271,2]
[348181236,1736369449142,-867.41,0.00010271,2]